Cogmind - Beta 13 @@@ ROGUE MODE // 2024.05.23 @ 17:26:08 Player: H3-RMN Result: Destroyed by 10-YEE(R) with Subdweller Beam Cannon Performance ------------- Evolutions (0) 0 Regions Visited (3) 600 Robots Destroyed (41) 205 Value Destroyed (1082) 1082 Prototype IDs (6) 120 Alien Tech Used (0) 0 Bonus (-219) -219 TOTAL SCORE: 1788 Bonus ------- Friendly Fire -219 Cogmind --------- Core Integrity 0/250 Matter 147/300 Energy 200/200 System Corruption 0% Temperature Cool (9) Movement Treading (560) Ox5 Location -10/Subcaves Parts ------- > --- POWER (1) -------- Subdweller Power Source > --- PROPULSION (2) --- Light Treads Subdweller Monowheel > --- UTILITY (2) ------ Huge Storage Unit Sensor Drone Bay (17/20) > --- WEAPON (2) ------- Subdweller Machine Gun Subdweller Shrapnel Launcher > --- INVENTORY (25) --- Light Angular Momentum Engine Wheel Wheel Wheel Large Storage Unit High-capacity Storage Unit Humpback Transport Network Coupler Light Armor Plating Makeshift Thermal Plating Authchip [Device] Trap Extractor (0/4) Trap Extractor (0/4) Trap Extractor (0/4) Cobbler Unit Makeshift Laser Beamcaster Beam Cannon Battle Cannon Datajack Makeshift Axe Peak State ------------ > --- POWER ------------ Light Angular Momentum Engine > --- PROPULSION ------- Light Treads Subdweller Monowheel > --- UTILITY ---------- Huge Storage Unit Sensor Drone Bay > --- WEAPON ----------- Subdweller Beam Cannon Subdweller Machine Gun > --- INVENTORY -------- Light Treads Wheel Wheel Wheel Large Storage Unit Large Storage Unit High-capacity Storage Unit Humpback Signal Interpreter Transport Network Coupler Light Armor Plating Authchip [Device] Trap Extractor Trap Extractor Trap Extractor Trap Extractor Beam Rifle Beam Rifle Makeshift Laser Beamcaster Beam Cannon Light Cannon Datajack Hammer [Rating: 25] Favorites ----------- Power Ion Engine Engine Ion Engine Propulsion Light Treads Treads Light Treads Wheel Compact Wheel Utility Huge Storage Unit Device Sensor Drone Bay Storage Huge Storage Unit Protection Light Armor Plating Weapon Light Assault Rifle Energy Gun Beam Rifle Energy Cannon Subdweller Beam Cannon Ballistic Gun Light Assault Rifle Ballistic Cannon Light Cannon Launcher Subdweller Shrapnel Launcher Build | -11 -10 -10 -10 ------- Run | Yrd Mat Min Sub Slots Evolved . | . . . . Power . | . . . . Propulsion . | . . . . Utility . | . . . . Weapon . | . . . . Parts Attached 50 | 8 22 5 15 Power 7 | 2 2 1 2 Engine 7 | 2 2 1 2 Core . | . . . . Reactor . | . . . . Propulsion 12 | 2 6 1 3 Treads 7 | 1 4 1 1 Leg . | . . . . Wheel 5 | 1 2 . 2 Hover . | . . . . Flight . | . . . . Utility 14 | 2 7 3 2 Device 4 | 1 . 2 1 Storage 3 | 1 2 . . Processor . | . . . . Hackware . | . . . . Protection 7 | . 5 1 1 Artifact . | . . . . Weapon 17 | 2 7 . 8 Energy Gun 9 | 2 5 . 2 Energy Cannon 1 | . . . 1 Ballistic Gun 5 | . 2 . 3 Ballistic Cannon 1 | . . . 1 Launcher 1 | . . . 1 Special Weapon . | . . . . Impact Weapon . | . . . . Slashing Weapon . | . . . . Piercing Weapon . | . . . . Special Melee Weapon . | . . . . Unidentified Prototypes 1 | . . 1 . Parts Lost 8 | . 4 2 2 Power 1 | . . . 1 Propulsion 3 | . 1 1 1 Utility 2 | . 1 1 . Weapon 2 | . 2 . . Highest Loss Streak 2 | . 2 1 1 To Critical Strikes . | . . . . Average Slot Usage (%) 98 | . 98 98 99 Engine 13 | . 12 14 13 Treads 13 | . 13 14 14 Wheel 13 | . 13 14 14 Device 4 | . . 9 7 Storage 14 | . 14 14 14 Protection 9 | . 13 2 6 Energy Gun 12 | . 17 14 3 Energy Cannon 2 | . . . 9 Ballistic Gun 11 | . 10 14 12 Naked Turns . | . . . . Heaviest Build 115 | 14 94 103 115 Greatest Support 20 | 10 16 16 20 Greatest Overweight (x) 9 | 1 9 6 6 Average Overweight (x) 4 | . 4 5 4 Largest Inventory Capacity 25 | 8 25 25 25 Average Capacity 22 | 7 20 25 25 Most Carried 25 | 6 23 23 25 Average Carried 18 | 3 15 20 23 Final Capacity 25 | 8 25 25 25 Final Carried 23 | 6 20 21 23 Class Distribution -------------------- 77% | Mutant 22% | Scavenger-Mutant Dominant Class ---------------- Mutant | -10/Materials Mutant | -10/Mines Scavenger-Mutant | -10/Subcaves Resources | -11 -10 -10 -10 ----------- Run | Yrd Mat Min Sub Matter Collected 850 | 219 361 60 210 Remotely . | . . . . Salvage Created 1426 | 22 828 184 392 Parts 82 | 7 44 11 20 Haulers Intercepted 2 | . 2 . . Recyclers Shooed 2 | 1 1 . . Parts Field Recycled . | . . . . Retrieved Matter . | . . . . Parts Self-Destructed 12 | . . . 12 Prevented . | . . . . Kills | -11 -10 -10 -10 ------- Run | Yrd Mat Min Sub Combat Hostiles Destroyed 31 | . 18 4 9 Guns 26 | . 18 4 4 Cannons 3 | . . . 3 AOE 1 | . . . 1 Classes Destroyed 12 | 1 7 . 4 Worker 2 | . 2 . . Tunneler 2 | 2 . . . Hauler 2 | . 2 . . Recycler 1 | . 1 . . Operator 2 | . 2 . . Drone 1 | . . . 1 Watcher 1 | . 1 . . Swarmer 6 | . 6 . . Grunt 16 | . 12 4 . Sentry 1 | . . . 1 Cobbler 1 | . . . 1 Subdweller 8 | . . . 8 Best Kill Streak 5 | 2 5 2 2 Combat Bots Only 4 | . 4 2 2 Max Kills in Single Turn 2 | 2 1 1 1 Gunslinging . | . . . . Exploded 1 | . . . 1 Melee . | . . . . Uniques/NPCs Destroyed . | . . . . Combat | -11 -10 -10 -10 -------- Run | Yrd Mat Min Sub Hostile Shots Fired 165 | . 107 25 33 Missed 39 | . 26 2 11 Damage Taken 1812 | . 875 310 627 Core 276 | . 69 74 133 Absorbed by Shields . | . . . . Regen/Repaired (Parts) 66 | . 66 . . Core Remaining (%) 100 | 100 . . . Volleys Fired 165 | 6 94 16 49 Largest 2 | 2 2 2 2 Hottest 115 | 90 112 76 115 Shots Fired 300 | 12 183 32 73 Gun 260 | 12 183 32 33 Cannon 32 | . . . 32 Launcher 8 | . . . 8 Special . | . . . . Kinetic 110 | . 61 16 33 Thermal 190 | 12 122 16 40 Explosive . | . . . . Electromagnetic . | . . . . Robot Hit Streak 12 | 6 8 4 12 Robot Miss Streak 4 | 2 3 4 2 Penetration Max . | . . . . Secondary Targets 3 | . 1 2 . Max Gunslinging Chain 1 | . 1 1 . Shots Hit Robots 188 | 9 119 16 44 Core Hits 68 | 2 40 9 17 Critical Kills 1 | . . . 1 Critical Parts Destroyed . | . . . . Critical Strikes 8 | . 6 . 2 Burn 6 | . 6 . . Meltdown 1 | . . . 1 Blast 1 | . . . 1 Melee Attacks . | . . . . Impact . | . . . . Slashing . | . . . . Piercing . | . . . . Sneak Attacks . | . . . . Combat Hostiles . | . . . . Follow-up Attacks . | . . . . Damage Inflicted 3208 | 107 1467 193 1441 Guns 2137 | 107 1460 193 377 Cannons 454 | . . . 454 Explosions 610 | . . . 610 Melee . | . . . . Ramming 7 | . 7 . . Kinetic 1244 | . 286 75 883 Thermal 1957 | 107 1174 118 558 Explosive . | . . . . Electromagnetic . | . . . . Impact . | . . . . Slashing . | . . . . Piercing . | . . . . Highest Corruption . | . . . . Average Corruption . | . . . . Corruption Purged . | . . . . Corruption Blocked . | . . . . Overload Shots . | . . . . Overflow Damage 29 | . . . 29 Projectiles 21 | . . . 21 Explosions 8 | . . . 8 Melee . | . . . . Knockbacks . | . . . . Impact . | . . . . Kinetic . | . . . . Secondary . | . . . . Self-Inflicted Damage 34 | . 3 . 31 Shots 1 | . . . 1 Rammed 1 | . 1 . . Targets Rammed 1 | . 1 . . Kicked . | . . . . Crushed . | . . . . Highest Temperature 404 | 45 404 197 30 Average Temperature 101 | 20 115 92 15 Received Heat Transfer 699 | . 378 210 111 Effects 4 | . 4 . . Interference 2 | . 2 . . Matter Decay 1 | . 1 . . Short Circuit 1 | . 1 . . Siege Activations . | . . . . Robots Corrupted . | . . . . Combat Hostiles . | . . . . Parts Fried . | . . . . Impact Corruptions . | . . . . Robots Melted 2 | . 1 . 1 Combat Hostiles 1 | . . . 1 Parts Melted 9 | . 9 . . Heat Transferred 4913 | 273 3530 296 814 Parts Sabotaged . | . . . . Parts Stolen . | . . . . Parts Stripped . | . . . . Power Chain Reactions . | . . . . Alert | -11 -10 -10 -10 ------- Run | Yrd Mat Min Sub Peak Influence 190 | 10 190 94 . Initial 13 | . 6 13 . Average 66 | 4 83 25 . Maximum Alert Level . | . . . . Low Security (%) 100 | 100 100 100 . Level 1 . | . . . . Level 2 . | . . . . Level 3 . | . . . . Level 4 . | . . . . Level 5 . | . . . . High Security . | . . . . Max Security . | . . . . Squads Dispatched 6 | . 6 . . Investigation 5 | . 5 . . Extermination . | . . . . Reinforcement 1 | . 1 . . Assault . | . . . . Garrison . | . . . . Intercept . | . . . . Searches Triggered . | . . . . Construction Impeded . | . . . . Haulers Reinforced . | . . . . Active Scanning Responses . | . . . . Cargo Convoy Interrupts . | . . . . Stealth | -11 -10 -10 -10 --------- Run | Yrd Mat Min Sub Distress Signals 2 | . 2 . . Communications Jammed . | . . . . Distress Signals . | . . . . Times Spotted 53 | . 38 4 11 Peak Tracking Total 5 | . 5 2 2 Tactical Retreats 4 | . 4 . . Traps | -11 -10 -10 -10 ------- Run | Yrd Mat Min Sub Traps Triggered 7 | . 5 . 2 Indirectly . | . . . . Trap Hack Attempts . | . . . . Triggered . | . . . . Disarmed . | . . . . Reprogrammed . | . . . . Reused . | . . . . Traps Extracted . | . . . . Installed 1 | . . . 1 Triggered . | . . . . Machines | -11 -10 -10 -10 ---------- Run | Yrd Mat Min Sub Machines Disabled . | . . . . Max in Single Turn . | . . . . Machines Repaired . | . . . . Machines Dismantled . | . . . . Machines Sabotaged . | . . . . Overloaded Fab Kills . | . . . . Hacking | -11 -10 -10 -10 --------- Run | Yrd Mat Min Sub Machines Accessed 11 | . 9 2 . Terminals 7 | . 6 1 . Fabricators . | . . . . Repair Stations 1 | . 1 . . Recycling Units 2 | . 2 . . Scanalyzers . | . . . . Garrison Access . | . . . . Total Hacks 29 | . 24 5 . Successful 16 | . 13 3 . Failed 12 | . 10 2 . Catastrophic 1 | . 1 . . Database Lockouts 1 | . 1 . . Manual 14 | . 10 4 . Terminals 19 | . 15 4 . Fabricators . | . . . . Repair Stations 3 | . 3 . . Recycling Units 6 | . 6 . . Scanalyzers . | . . . . Garrison Access . | . . . . Terminal Hacks 8 | . 5 3 . Part Schematic 2 | . . 2 . Robot Analysis 1 | . 1 . . Prototype ID Bank 2 | . 2 . . Open Door 1 | . . 1 . Locate Traps 1 | . 1 . . Zone Layout 1 | . 1 . . Fabricator Hacks . | . . . . Repair Station Hacks 2 | . 2 . . Scan Component 1 | . 1 . . Repair 1 | . 1 . . Recycling Unit Hacks 3 | . 3 . . Report Inventory 1 | . 1 . . Retrieve Components 2 | . 2 . . Scanalyzer . | . . . . Garrison Access Hacks . | . . . . Unauthorized Hacks 3 | . 3 . . Terminals 2 | . 2 . . Botnet 2 | . 2 . . Fabricators . | . . . . Repair Stations . | . . . . Recycling Units 1 | . 1 . . Tunnel 1 | . 1 . . Scanalyzers . | . . . . Garrison Access . | . . . . Data Cores Recovered . | . . . . Used . | . . . . Hacking Detections 9 | . 8 1 . Full Trace Events 4 | . 4 . . Feedback Events . | . . . . Feedback Blocked . | . . . . Robot Schematics Acquired . | . . . . Robots Built . | . . . . Authchips . | . . . . Time . | . . . . Total Robot Build Rating . | . . . . Part Schematics Acquired 2 | . . 2 . Parts Built . | . . . . Authchips . | . . . . Time . | . . . . Total Part Build Rating . | . . . . Parts Repaired 1 | . 1 . . Time 26 | . 26 . . Parts Recycled . | . . . . Recycled Matter . | . . . . Retrieved Matter . | . . . . Retrieved Components 16 | . 16 . . Parts Scanalyzed . | . . . . Part Schematics Acquired . | . . . . Parts Damaged . | . . . . Bothacking | -11 -10 -10 -10 ------------ Run | Yrd Mat Min Sub Used RIF Installer . | . . . . Robots Hacked . | . . . . Non-combat . | . . . . Combat . | . . . . Robot Hacks Applied . | . . . . Relay Couplers Released . | . . . . Fabnet Peak Effective % . | . . . . Robots Rewired . | . . . . Allies Hacked . | . . . . Hacks Repelled . | . . . . Allies | -11 -10 -10 -10 -------- Run | Yrd Mat Min Sub Total Allies 1 | . . 1 . Largest Group 1 | . . 1 . Highest-Rated Group 31 | . . 31 . Highest-Rated Ally 31 | . . 31 . Total Orders 1 | . . . 1 RETURN 1 | . . . 1 Ally Attacks 4 | . . 4 . Total Damage 20 | . . 20 . Kills . | . . . . Allies Corrupted 1 | . . . 1 Allies Melted . | . . . . Intel | -11 -10 -10 -10 ------- Run | Yrd Mat Min Sub Robot Analysis Total 1 | . 1 . . Derelict Logs Recovered 4 | . . 1 3 Drone Launches 4 | . . 1 3 Drone Recoveries 1 | . . . 1 Exploration | -11 -10 -10 -10 ------------- Run | Yrd Mat Min Sub Turns Passed 4787 | 97 2400 889 1401 Spaces Moved 1964 | 69 826 445 624 Core 1 | 1 . . . Treads . | . . . . Legs . | . . . . Wheels 1963 | 68 826 445 624 Hover . | . . . . Flight . | . . . . Fastest Speed 50 | 50 95 175 150 Average Speed 163 | 88 159 185 160 Slowest Speed 215 | 95 215 190 190 Overloaded Moves . | . . . . Propulsion Burnouts . | . . . . Robots Hopped . | . . . . Cave-ins Triggered . | . . . . Exploration Rate (%) 54 | 5 100 80 32 Regions Visited 3 Branch Regions 2 Pre-discovered Areas 1 | . 1 . . Known Exits Taken . | . . . . Unknown Exits Taken 3 | 1 1 1 . Scrap Searched 11 | . . 1 10 Spaces Dug 9 | . . . 9 Terrain Destroyed 56 | . . . 56 Melee . | . . . . Projectile 1 | . . . 1 AOE 55 | . . . 55 Terrain Rammed . | . . . . Walls Destroyed . | . . . . Machines Disabled . | . . . . Actions | -11 -10 -10 -10 --------- Run | Yrd Mat Min Sub Total 3255 | 89 1737 478 951 Wait 1012 | . 767 9 236 Move 1961 | 68 825 444 624 Hop . | . . . . Pick Up 43 | 7 21 3 12 Fast Attach 15 | 5 7 . 3 Attach 14 | 2 7 2 3 Detach . | . . . . Swap 21 | 1 8 3 9 Drop 22 | . 7 1 14 Fire 165 | 6 94 16 49 Melee . | . . . . Ram 1 | . 1 . . Kick . | . . . . Crush . | . . . . Escape Stasis . | . . . . Rewire . | . . . . Trap 1 | . . . 1 Miscellaneous . | . . . . Route ------- -11/Scrapyard -10/Materials (discovered 4 exits: [*Mat x3] / *Min) -10/Mines (discovered 4 exits: [*Mat x2] / [*Exi] / [*Sub]) -10/Subcaves (discovered 2 exits: *Mat x2) History --------- Turn | Location | Event 10 | -11/Scrapyard | Discovered new exit (range 16) 98 | -11/Scrapyard | Entered Materials 252 | -10/Materials | Discovered new exit (range 16) 300 | -10/Materials | Central database locked down 310 | -10/Materials | Build established: Mutant 654 | -10/Materials | Discovered new exit (range 6) 778 | -10/Materials | Repaired Lgt. Armor Plating 1564 | -10/Materials | Discovered new exit (range 3) 2457 | -10/Materials | Discovered new exit (range 15) 2498 | -10/Materials | Entered Mines 2501 | -10/Mines | Received a Mining Laser from a helpful Derelict 2549 | -10/Mines | Deemed a non-threat by the Exiles lab entrance 2549 | -10/Mines | Discovered new exit (range 5) 2656 | -10/Mines | Core integrity fell below 50% 2672 | -10/Mines | Discovered new exit (range 12) 2693 | -10/Mines | Found the Drone Emporium 2706 | -10/Mines | Found Prototype Device 2707 | -10/Mines | Identified Sensor Drone Bay 2869 | -10/Mines | Learned 8 Materials zone layouts 3125 | -10/Mines | Discovered new exit (range 12) 3264 | -10/Mines | Discovered new exit (range 11) 3387 | -10/Mines | Entered Subcaves 3387 | -10/Subcaves | Accompanied by 1 ally 3433 | -10/Subcaves | Learned Materials stockpile data 3550 | -10/Subcaves | Discovered new exit (range 3) 3588 | -10/Subcaves | Learned Materials interactive machine intel 3915 | -10/Subcaves | Build established: Scavenger-Mutant 4193 | -10/Subcaves | A swath of the cavern ceiling suddenly collapsed 4200 | -10/Subcaves | Ambushed by Subdwellers from Twisted Machinery 4201 | -10/Subcaves | Core integrity fell below 20% 4294 | -10/Subcaves | Identified exit to Materials 4455 | -10/Subcaves | A swath of the cavern ceiling suddenly collapsed 4640 | -10/Subcaves | Shifting Twisted Machinery released Sub. Optics 4644 | -10/Subcaves | Shifting Twisted Machinery released Mak. Thermal Plating 4784 | -10/Subcaves | A Subdweller sparked back to life 4784 | -10/Subcaves | A Subdweller sparked back to life 4788 | -10/Subcaves | Destroyed by 10-YEE(R) with Subdweller Beam Cannon Last Messages --------------- 04641_ Acquired Mak. Axe. Mak. Thermal Plating falls loose from the Twisted Machinery. 04655_ Dropped Lrg. Storage Unit. 04655_ Acquired Mak. Thermal Plating. 04697_ Sensor Drone released from Sensor Drone Bay. 04701_ Lgt. Treads destroyed. 04707_ H1-EHM(R) destroyed. 04714_ Acquired 14 matter. 04737_ ZI-D0P(R) destroyed. 04742_ Dropped Sub. Machine Gun. 04747_ Acquired 35 matter. 04782_ Sensor Drone destroyed. 04782_ Destroyed Lgt. Ion Engine. 04784_ OQ-C0D(R) creaks and sparks as it begins to move. 04784_ FU-31Y(R) creaks and sparks as it begins to move. 04786_ OQ-C0D(R) destroyed. Map ----- +----------------------------------------------------+ | ???????????????????????????????????????????#%][] " | | ???????????????????????????????????????????#"[ | | ???????????????????????????????????????????# # | | | ??????????????????????????" ??????????????##" % | | ??????????????????????? ???????????????###[ # | | ?????????????????????? ??????????????##%% | | ???????????????????? #?????????????#^ [ # | | ????????????????? ##????????????#" # | | ???????????????## ###??????????## | | ??????????????## ###?????###?##""^# | | ?????????t????? ##???# ######## | | ???????????????# ;; #??#"""## ### | | ?????????t????## ###" "##"" "" | | ?????????????## ; "## ""## | | ?????????????# ; #?# "" "### " "" | | ???????ss????# ; ### " "!## "" | | ????????????## R !%! ; ## * """ ### | | ????????????# ; [ ! """""""%]##?? | | ????????????# ;; """""" ##/##?## | | ??????????? R " "" ## ##" | | ??????????????????# n ""### "" | | ??????????????????# """### """" | | ?????????????????## """ !"##" | | ???????????????### ;;# ""#? | | ???????????????# ;## ### #" # | | ??????????????# @ ;## #### #?# ## | | ??????????????# #; ### #??#####?# | | ??????????????# ###### ##?## ????????## ## | | ??????????????####?????####???#####????????###?### | | ?????????????????????????????????????????????????? | | ?????????????????????????????????????????????????? | | ?????????????????????????????????????????????????? | | ?????????????????????????????????????????????????? | | ?????????????????????????????????????????????????? | | ?????????????????????????????????????????????????? | | ?????????????????????????????????????????????????? | | ?????????????????????????????????????????????????? | | ?????????????????????????????????????????????????? | | ?????????????????????????????????????????????????? | | ?????????????????????????????????????????????????? | | ?????????????????????????????????????????????????? | | ?????????????????????????????????????????????????? | | ?????????????????????????????????????????????????? | | ?????????????????????????????????????????????????? | | | | | | | | | | | | | +----------------------------------------------------+ Best States ------------- Heat Dissipation 25 Energy Generation 18 Energy Capacity 250 Matter Stores 300 Matter Capacity 300 Sight Range 16 Terrain Scan Density 10 Armor Coverage 150 Evasion (%) 44 Recoil Reduction 1 Authchip Count 1 Item Schematics ----------------- Cargo Storage Unit | -10/Mines | Hacked Hcp. Storage Unit | -10/Mines | Hacked Robot Schematics ------------------ None Fabricated ------------ Nothing Alien Tech Used ----------------- None Achievements -------------- None Challenges ------------ None Game ------ Seed InsulationGodChainsword Manual? 0 Play Time 00:28:20 Cumulative 769.1 hours Start 2024.05.23 @ 16:44:26 End 2024.05.23 @ 17:26:08 Sessions 2 Manual Loads 0 Difficulty Rogue Special Mode None Game No. 312 Rogue 282 Adventurer 3 Explorer 27 Win Type - Total 17 Types 10/3/2/1/0/1/0/0/0 Lore% 92 Gallery% 97 Achievement% 86 Wizard Run 0 Options --------- Layout 2 ASCII 0 Keyboard 0 Movement Numpad Keybinds 0 Fullscreen 2 Font 24/Smallcaps Map View 50x44 Zoom Use 0% Tactical HUD 1 Map Filters NONE Filters NONE Steam 1 RUN: ae81ad6b-5df3-404e-9b85-972981460b30